bitfinex/quotes_ETHUSD_20241216
["timestamp","ask_amount","ask_price","bid_price","bid_amount"]
[1734345187899,0.55,3939.0,3938.0,1.06091444]
[1734345187900,0.55,3938.8,3938.0,1.06091444]
[1734345188107,2.53831,3939.7,3937.9,2.17000045]
[1734345188108,0.55,3938.6,3937.9,2.17000045]
[1734345189002,0.8186,3938.5,3937.5,3.23091489]
[1734345189348,0.55,3938.4,3937.5,2.17000045]
[1734345189498,0.55,3938.4,3937.6,0.98960901]
[1734345189705,0.55,3938.4,3937.9,2.17000045]
[1734345192850,0.55,3938.2,3937.9,2.17000045]
[1734345196258,0.8289,3938.3,3937.9,2.17000045]
[1734345198731,0.8289,3938.3,3937.9,2.42394045]
[1734345198931,1.3621,3939.2,3938.0,0.26778617]
[1734345199129,0.8121,3939.2,3938.6,2.17000045]
[1734345199369,0.8121,3939.2,3939.0,2.17000045]
[1734345200158,0.8121,3939.2,3938.6,2.17000045]
[1734345200488,0.8121,3939.2,3938.6,2.42389045]
[1734345200688,0.8121,3939.2,3938.7,0.24238905]
[1734345201134,0.8121,3939.2,3938.7,0.49627905]
[1734345202215,2.53814,3939.9,3938.8,0.25387]
[1734345202216,0.55,3939.8,3938.8,0.25387]
[1734345202530,0.55,3939.6,3938.8,0.25387]
[1734345204168,0.55,3939.6,3938.7,0.24238905]
[1734345204801,0.55,3939.6,3938.2,1.06091444]
[1734345204802,3.30922,3939.3,3938.2,1.06091444]
[1734345204964,2.53871,3939.0,3937.9,5.17000045]
[1734345205297,1.57100278,3939.8,3937.9,5.17000045]
[1734345205298,0.55,3938.7,3938.0,3.27932137]
[1734345205498,0.55,3938.7,3938.0,3.25393]
[1734345205795,0.55,3938.7,3938.1,0.57109656]
[1734345206306,0.7707,3938.8,3938.3,2.17000045]
[1734345206452,0.7707,3938.8,3938.5,0.2539]
[1734345206851,0.55,3939.6,3938.5,0.2539]
[1734345207096,0.7994,3939.7,3938.5,0.2539]
[1734345207097,0.7994,3939.7,3939.2,0.25385]
[1734345207251,0.7994,3939.7,3939.2,0.27923389]
[1734345207703,0.7994,3939.7,3939.1,2.17000045]
[1734345208306,0.7994,3939.7,3939.1,2.6662475]
[1734345208817,0.55,3939.6,3939.1,2.6662475]
[1734345209016,0.7994,3939.7,3939.2,0.25385]
[1734345210328,0.7994,3939.7,3939.3,0.25385]
[1734345213137,0.7994,3939.7,3939.1,2.6662475]
[1734345213335,0.7994,3939.7,3939.2,0.34665475]
[1734345213739,0.7994,3939.7,3939.2,0.60050475]
[1734345213941,0.7994,3939.7,3939.5,0.25383]
[1734345214138,0.1626253,3940.7,3939.6,0.25382]
[1734345214139,0.55,3940.4,3939.6,0.25382]
[1734345214526,3.08783,3940.4,3939.3,0.25384]
[1734345214740,0.55,3940.0,3939.2,0.34665475]
[1734345215225,0.55,3940.0,3939.2,0.60050475]
[1734345215869,0.55,3940.0,3939.2,0.34665475]
[1734345216031,0.55,3939.8,3939.2,0.34665475]
[1734345217770,1.3815,3939.6,3938.7,2.17000045]
[1734345218971,0.55,3939.2,3938.1,3.48483489]
[1734345219178,0.55,3938.8,3938.1,2.71095561]
[1734345219358,0.55,3938.8,3938.2,0.27109556]
[1734345219540,0.55,3938.8,3938.2,0.55813072]
[1734345222341,0.55,3938.8,3938.2,0.28703516]
[1734345224492,0.78548157,3938.7,3937.7,3.23091489]
[1734345224700,0.78548157,3938.7,3937.7,2.17000045]
[1734345224701,0.76,3938.5,3937.7,2.17000045]
[1734345224919,0.55,3938.4,3937.7,2.17000045]
[1734345225217,0.55,3938.4,3937.7,2.74110101]
[1734345225384,0.55,3938.4,3937.7,2.17000045]
[1734345225588,0.55,3938.4,3937.9,0.25393]
[1734345225918,0.55,3938.4,3938.1,2.17000045]
[1734345229003,0.76,3938.5,3938.1,2.17000045]
[1734345231248,0.76,3938.5,3938.2,0.25391]
[1734345231454,0.76,3938.5,3938.3,0.24239104]
[1734345231746,0.55,3939.0,3938.3,0.24239104]
[1734345231960,0.55,3938.8,3938.1,2.17000045]
[1734345232119,0.55,3938.8,3937.7,2.42395045]
[1734345232310,0.02548157,3939.4,3937.7,2.17000045]
[1734345232311,0.55,3938.4,3937.7,2.17000045]
[1734345233258,0.55,3938.2,3937.4,0.54099516]
[1734345233950,0.55,3938.2,3937.4,0.28703516]
[1734345234121,0.55,3938.2,3937.5,0.62589356]
[1734345234324,0.55,3938.0,3937.1,0.39632863]
[1734345234532,0.55,3937.7,3937.1,0.39632863]
[1734345234732,0.54083321,3937.7,3937.1,0.39632863]
[1734345235157,0.7941,3937.8,3937.1,0.39632863]
[1734345235937,3.3336,3937.8,3937.1,0.39632863]
[1734345237260,0.7941,3937.8,3937.1,0.39632863]
[1734345237415,0.7941,3937.8,3937.1,0.68166505]
[1734345238245,0.7941,3937.8,3937.2,0.28703516]
[1734345238445,0.7941,3937.8,3937.5,0.25396]
[1734345238842,0.7941,3937.8,3937.7,2.17000045]
[1734345239158,0.7767,3938.6,3937.7,2.17000045]
[1734345239455,0.7767,3938.6,3937.8,0.27109956]
[1734345239760,0.7767,3938.6,3937.6,0.25396]
[1734345240510,0.7767,3938.6,3937.7,0.25395]
[1734345240958,0.7767,3938.6,3937.8,0.25394]
[1734345243021,0.7684,3938.3,3937.3,2.56644036]
[1734345243362,0.55,3938.0,3937.3,0.39643991]
[1734345243568,0.94236973,3937.9,3937.3,0.39643991]
[1734345243731,0.7825,3937.8,3937.3,0.39643991]
[1734345247764,0.7825,3937.8,3937.3,0.65040991]
[1734345248566,0.7825,3937.8,3937.4,0.25397]
[1734345249078,1.3369,3938.4,3937.4,0.25397]
[1734345249513,1.3369,3938.4,3937.4,2.17000045]
[1734345249656,1.3369,3938.4,3937.6,0.25395]
[1734345250087,1.3369,3938.4,3937.7,0.25394]
[1734345250088,0.7869,3938.4,3937.7,0.25394]
[1734345250403,0.7869,3938.4,3937.8,2.42394045]
[1734345250773,0.7869,3938.4,3937.9,0.25394]
[1734345250976,0.7869,3938.4,3938.0,0.24239405]
[1734345251455,0.7869,3938.4,3938.1,0.25392]
[1734345251793,0.7869,3939.1,3938.1,0.25392]
[1734345251992,0.7869,3939.1,3937.9,0.25394]
[1734345251993,3.32555,3939.1,3937.9,0.25394]
[1734345252153,0.7869,3939.1,3937.9,0.25394]
[1734345252360,0.7869,3938.9,3937.9,0.49633405]
[1734345252686,0.7869,3938.9,3938.0,0.25393]
[1734345253333,0.7869,3938.9,3937.9,1.05489405]
[1734345253494,0.7869,3938.9,3938.1,0.25392]
[1734345254148,0.7869,3938.9,3938.2,0.25392]
[1734345255338,0.7869,3938.9,3938.7,2.17000045]
[1734345255522,0.8106,3939.7,3938.8,0.21700004]
[1734345255724,0.8106,3939.7,3938.7,2.17000045]
[1734345256160,0.8106,3939.7,3938.9,0.25387]
[1734345256295,0.8106,3939.7,3938.7,2.17000045]
[1734345256296,0.8106,3939.7,3939.1,2.17000045]
[1734345256496,0.8106,3939.7,3939.1,2.42386045]
[1734345256726,0.8106,3939.7,3939.1,2.17000045]
[1734345256937,0.8106,3939.7,3939.3,0.25385]
[1734345257196,0.8106,3939.7,3939.1,2.38953902]
[1734345257197,20.7836,3940.0,3939.5,2.17000045]
[1734345260359,20.7836,3940.0,3939.5,2.42383045]
[1734345261186,20.7836,3940.0,3939.5,2.17000045]
[1734345261367,20.7836,3940.0,3939.5,2.41238549]
[1734345262606,20.0,3940.0,3939.9,2.17000045]
[1734345263088,20.0,3940.0,3939.9,3.18871045]
[1734345264091,20.0,3940.0,3939.9,6.18871045]
[1734345266304,20.0,3940.0,3939.9,1.01871]
[1734345266605,20.0,3940.0,3939.3,0.25384]
[1734345266804,20.0,3940.0,3939.3,2.55936988]
[1734345266805,0.8012,3939.9,3939.3,2.55936988]
[1734345266955,0.8012,3939.9,3939.3,2.42384045]
[1734345267399,0.8012,3939.9,3939.3,2.17000045]
[1734345267806,0.82668157,3939.9,3938.8,2.42388045]
[1734345268164,0.8012,3939.9,3938.8,2.42388045]
[1734345269270,0.8012,3939.9,3938.9,0.25387]
[1734345269485,0.8012,3939.9,3939.0,0.24238705]
[1734345269887,0.8012,3939.9,3939.2,2.17000045]
[1734345271220,0.8012,3939.9,3939.6,2.42382045]
[1734345271511,20.0,3940.0,3939.6,2.42382045]
[1734345271876,20.0,3940.0,3939.8,0.25381]
[1734345272123,20.0,3940.0,3939.8,0.49619105]
[1734345276244,20.0,3940.0,3939.0,3.24238705]
[1734345276245,0.7724,3939.9,3939.2,2.17000045]
[1734345276618,0.7724,3939.9,3939.2,2.42385045]
[1734345276945,0.7724,3939.9,3939.6,2.17000045]
[1734345278046,20.0,3940.0,3939.7,0.25382]
[1734345278200,20.0,3940.0,3939.8,0.24238205]
[1734345278531,20.0,3940.0,3939.9,0.25381]
[1734345282122,20.0,3940.0,3939.9,1.00571]
[1734345283872,20.0,3940.0,3939.9,0.25381]
[1734345284274,20.0,3940.0,3939.9,1.04361]
[1734345284496,19.60377351,3940.0,3939.9,1.74329577]
[1734345285047,19.60377351,3940.0,3939.9,1.87343627]
[1734345286508,19.60377351,3940.0,3939.9,0.69968577]
[1734345286689,19.60377351,3940.0,3939.8,0.25381]
[1734345287176,19.60377351,3940.0,3939.6,2.17000045]
[1734345287576,0.85478157,3939.9,3939.2,2.17000045]
[1734345287910,0.8293,3939.9,3939.2,2.42385045]
[1734345288215,0.8293,3939.9,3939.3,0.24238505]
[1734345289024,3.36745,3939.9,3939.2,2.17000045]
[1734345289312,0.7878,3939.8,3939.2,2.17000045]
[1734345289888,0.7878,3939.6,3938.2,0.88561241]
[1734345290217,0.7878,3939.6,3938.8,2.17000045]
[1734345291211,0.813,3939.8,3938.8,2.17000045]
[1734345291509,0.7945,3939.6,3938.8,2.17000045]
[1734345293311,2.53834,3939.6,3938.8,2.17000045]
[1734345293527,0.7945,3939.5,3938.8,2.17000045]
[1734345294124,0.7945,3939.4,3938.8,2.17000045]
[1734345295141,2.53865,3939.2,3938.4,2.17000045]
[1734345295308,2.53863,3939.2,3938.4,2.17000045]
[1734345295510,0.8113,3938.9,3938.0,2.17000045]
[1734345296514,0.8113,3938.9,3938.2,0.25392]
[1734345296692,0.8113,3938.9,3938.0,2.17000045]
[1734345297733,0.8113,3938.9,3937.9,1.01199405]
[1734345297899,0.8113,3938.9,3938.4,2.17000045]
[1734345299396,0.8113,3938.9,3938.0,2.57119986]
[1734345301995,3.3501,3938.9,3938.0,2.57119986]
[1734345302647,0.8113,3938.9,3938.0,2.57119986]
[1734345303238,0.8113,3938.9,3938.0,2.82512986]
[1734345303423,0.8113,3938.9,3938.1,0.30675239]
[1734345305739,3.35013,3938.9,3938.1,0.30675239]
[1734345306140,0.8113,3938.9,3938.1,0.30675239]
[1734345307146,0.8113,3938.9,3938.4,2.17000045]
[1734345308445,0.8238,3939.6,3938.8,2.17000045]
[1734345308653,0.8238,3939.6,3938.9,0.21700004]
[1734345308804,0.8238,3939.6,3939.2,2.42385045]
[1734345309665,0.8138,3939.9,3939.2,2.42385045]
[1734345309951,0.8138,3939.9,3939.3,0.32251505]
[1734345310746,0.8138,3939.9,3939.3,0.57636505]
[1734345312008,0.8138,3939.9,3939.3,0.32251505]
[1734345313101,0.8138,3939.9,3939.2,2.17000045]
[1734345317159,19.60377351,3940.0,3938.9,0.21700004]
[1734345317160,0.7715,3939.6,3938.9,0.21700004]
[1734345317391,0.7715,3939.6,3938.8,2.17000045]
[1734345317554,2.56390157,3939.5,3938.3,0.7929]
[1734345317742,0.7715,3939.4,3938.2,2.17000045]
[1734345318081,0.7715,3939.4,3938.2,2.42392045]
[1734345318285,0.7715,3939.4,3938.2,2.79854542]
[1734345318593,2.53852,3939.3,3938.2,2.79854542]
[1734345318786,0.7888,3939.2,3938.2,2.54462542]
[1734345319093,3.28988,3938.9,3937.9,0.24239405]
[1734345319304,3.28988,3938.9,3937.8,2.42394045]
[1734345320180,2.53886,3938.8,3937.8,2.17000045]
[1734345320383,0.7511,3938.9,3937.8,2.42394045]
[1734345320589,0.7511,3938.9,3937.9,0.39393655]
[1734345320886,0.7511,3938.9,3938.1,0.25392]
[1734345321238,0.7511,3938.9,3938.2,2.1953909]
[1734345321441,0.7511,3938.9,3938.2,2.17000045]
[1734345322673,2.56433157,3938.8,3937.9,0.39393655]
[1734345323184,0.7511,3938.9,3937.9,0.39393655]
[1734345323768,0.7511,3938.9,3938.0,0.40462668]
[1734345323967,3.28991,3938.9,3938.0,0.40462668]
[1734345324173,3.28991,3938.9,3937.8,2.17000045]
[1734345324492,3.28991,3938.9,3937.8,2.42394045]
[1734345327506,0.7511,3938.9,3938.2,2.17000045]
[1734345327660,0.7511,3938.9,3938.3,0.25391]
[1734345328400,0.7995,3939.6,3938.6,2.17000045]
[1734345328676,2.53841,3939.5,3938.7,0.0253869]
[1734345328824,2.53841,3939.5,3938.6,2.17000045]
[1734345328825,2.53847,3939.4,3938.6,2.17000045]
[1734345329119,0.7995,3939.3,3938.6,2.17000045]
[1734345329422,0.7995,3939.3,3938.8,0.25388]
[1734345329633,0.7995,3939.3,3938.8,0.52419346]
[1734345329784,0.7995,3939.6,3939.0,2.17000045]
[1734345332325,0.7507,3939.9,3939.2,0.25385]
[1734345332535,0.7507,3939.9,3939.4,2.42384045]
[1734345332682,19.60377351,3940.0,3939.5,0.24492225]
[1734345333333,19.60377351,3940.0,3939.6,0.25383]
[1734345334037,19.60377351,3940.0,3939.7,0.25382]
[1734345334240,19.60377351,3940.0,3939.8,0.25381]
[1734345334528,19.60377351,3940.0,3939.7,0.25382]
[1734345334914,19.60377351,3940.0,3939.5,1.02832225]
[1734345335226,19.60377351,3940.0,3939.5,1.28215225]
[1734345335428,19.60377351,3940.0,3939.5,1.02832225]
[1734345335644,17.06569351,3940.0,3939.9,3.20581045]
[1734345335931,16.87599532,3940.0,3939.9,6.77183041]
[1734345336233,16.87599532,3940.0,3939.9,9.91136831]
[1734345336394,16.87599532,3940.0,3939.9,7.83209437]
[1734345336589,16.87599532,3940.0,3939.9,6.77183041]
[1734345336801,16.87599532,3940.0,3939.9,7.84617531]
[1734345336999,16.87599532,3940.0,3939.9,8.90643716]
[1734345337413,16.87599532,3940.0,3939.9,7.84617531]
[1734345340923,16.87599532,3940.0,3939.9,8.39617531]
[1734345343123,16.87599532,3940.0,3939.9,7.84617531]
[1734345345365,16.87599532,3940.0,3939.9,4.84617531]
[1734345345545,16.87599532,3940.0,3939.9,3.77183041]
[1734345348331,0.81591023,3940.0,3939.9,4.32183041]
[1734345348567,0.81591023,3940.0,3939.9,6.99183041]
[1734345349259,0.78158374,3940.0,3939.9,6.99183041]
[1734345349422,0.78158374,3940.0,3939.9,38.79068341]
[1734345349622,0.78158374,3940.0,3939.9,9.99183041]
[1734345349850,0.78158374,3940.0,3939.9,15.71429541]
[1734345350048,0.78158374,3940.0,3939.9,12.51771241]
[1734345350262,0.78158374,3940.0,3939.9,7.32183041]
[1734345350429,0.1626253,3940.7,3939.9,7.32183041]
[1734345350430,0.1626253,3940.7,3940.0,3.55]
[1734345350647,0.1626253,3940.7,3940.6,2.42376045]
[1734345353541,0.1626253,3940.7,3940.6,2.17000045]
[1734345354156,0.9367253,3940.7,3940.6,2.17000045]
[1734345354561,0.9367253,3940.7,3940.2,2.17000045]
[1734345355093,0.8867253,3940.7,3940.3,0.25378]
[1734345355295,0.8867253,3940.7,3940.6,2.17000045]
[1734345355641,0.8867253,3940.7,3940.2,2.17000045]
[1734345355875,0.8867253,3940.7,3939.8,2.17000045]
[1734345356078,0.84058157,3940.6,3939.4,0.28703516]
[1734345356246,0.1126253,3940.7,3939.4,0.28703516]
[1734345356247,0.8151,3940.3,3939.4,0.28703516]
[1734345356445,2.53782,3940.4,3939.4,0.28703516]
[1734345356446,0.8151,3940.1,3939.4,0.28703516]
[1734345357298,0.8151,3940.1,3939.6,0.25383]
[1734345357500,0.8151,3940.1,3939.6,2.42383045]
[1734345357851,0.8151,3940.1,3939.7,0.25382]
[1734345358261,0.8151,3940.1,3939.6,2.45703561]
[1734345358461,0.8151,3940.1,3939.2,3.0]
[1734345358462,0.8151,3940.1,3939.2,0.25385]
[1734345358723,0.8151,3940.1,3939.3,2.17000045]
[1734345359264,0.8151,3940.1,3939.3,2.42385045]
[1734345359654,0.8151,3940.1,3939.3,2.17000045]
[1734345359854,2.53803,3940.1,3939.3,2.17000045]
[1734345360100,0.7649,3939.9,3939.3,2.17000045]
[1734345360854,2.53794,3940.2,3938.5,2.17000045]
[1734345361206,0.7649,3939.3,3938.3,2.56624952]
[1734345361382,0.7649,3939.1,3938.3,2.56624952]
[1734345361684,0.7649,3939.1,3938.3,2.87947647]
[1734345362005,0.7649,3940.1,3938.7,2.17000045]
[1734345362202,0.7649,3940.1,3939.5,2.17000045]
[1734345363809,0.7649,3940.1,3939.1,2.17000045]
[1734345363978,3.30291,3940.1,3939.2,3.0]
[1734345364515,0.7613,3940.0,3939.2,3.0]
[1734345364722,0.7613,3940.0,3939.1,2.74360249]
[1734345365011,0.7613,3940.0,3939.1,2.17000045]
[1734345365595,0.02548157,3940.6,3939.1,2.17000045]
[1734345365596,2.53814,3939.9,3939.1,2.17000045]
[1734345365908,2.53833,3939.6,3938.8,0.56601996]
[1734345366118,0.7571,3939.4,3938.3,2.87947647]
[1734345366274,0.7571,3939.4,3938.4,0.34204316]
[1734345366470,0.78258157,3939.4,3938.4,0.34204316]
[1734345366771,0.7571,3939.3,3938.4,0.34204316]
[1734345367083,0.7571,3939.3,3938.3,3.10719468]
[1734345367280,0.7571,3939.3,3938.3,2.85328468]
[1734345367606,0.7571,3939.3,3938.5,0.2539]
[1734345367811,0.7571,3939.3,3938.4,0.28703516]
[1734345368522,3.36735,3939.2,3938.4,0.28703516]
[1734345368871,0.7564,3939.0,3938.3,2.56624952]
[1734345369379,0.7564,3939.0,3938.3,2.85328468]
[1734345369774,0.7564,3939.0,3938.3,2.56624952]
[1734345370802,0.7564,3939.0,3938.3,0.39624907]
[1734345371000,2.53885,3938.8,3938.3,0.39624907]
[1734345371211,0.85798157,3938.7,3938.3,0.39624907]
[1734345371417,0.8325,3938.7,3938.3,0.39624907]
[1734345372530,4.10890278,3940.3,3938.3,0.39624907]
[1734345372531,0.8325,3939.8,3938.7,0.25389]
[1734345372677,0.8325,3939.8,3938.7,2.42389045]
[1734345372874,0.7772,3939.7,3938.7,2.17000045]
[1734345373098,0.331541,3939.6,3938.7,2.17000045]
[1734345373303,0.7772,3939.6,3938.7,2.17000045]
[1734345373475,0.7772,3939.6,3938.7,2.42388045]
[1734345373670,0.02548157,3939.5,3938.7,2.17000045]
[1734345373890,0.7931,3939.4,3938.7,2.17000045]
[1734345374089,0.7931,3939.4,3938.5,0.2539]
[1734345374405,0.7931,3939.4,3938.3,0.39624907]
[1734345374406,0.7931,3939.4,3938.4,2.42390045]
[1734345374590,0.7931,3939.4,3938.5,0.28201495]
[1734345375993,0.7931,3939.4,3938.8,2.42388045]
[1734345376830,0.7931,3939.4,3938.9,0.25387]
[1734345377532,0.7931,3939.4,3938.8,2.17000045]
[1734345377719,0.7931,3939.4,3938.3,0.39624907]
[1734345378033,0.8202,3939.1,3938.3,0.39624907]
[1734345378202,0.02548157,3939.0,3938.3,0.39624907]
[1734345378403,2.53861,3939.2,3938.3,0.39624907]
[1734345378622,0.8202,3939.1,3938.3,0.39624907]
[1734345378938,0.8202,3939.1,3938.4,2.17000045]
[1734345380339,0.8202,3939.1,3938.4,2.42391045]
[1734345380489,0.8202,3939.1,3938.4,2.17000045]
[1734345380687,0.8202,3939.1,3938.3,0.39624907]
[1734345381289,0.8202,3939.1,3938.3,0.65015907]
[1734345381926,0.8202,3939.1,3938.3,0.39624907]
[1734345382127,0.8202,3939.1,3938.5,0.25389]
[1734345383422,2.53816,3939.9,3938.4,2.50962536]
[1734345383592,2.53816,3939.9,3938.8,2.42388045]
[1734345383593,0.7865,3939.5,3938.8,2.42388045]
[1734345384329,0.7865,3939.5,3938.9,0.24238805]
[1734345384539,0.7865,3939.5,3939.0,0.25387]
[1734345385712,0.7865,3939.5,3938.9,0.24238805]
[1734345386217,0.7865,3939.5,3938.9,0.49625805]
[1734345386756,0.7865,3939.5,3938.4,2.76352536]
[1734345387060,3.3249,3939.5,3938.4,2.76352536]
[1734345387353,0.8091,3939.3,3938.4,2.17000045]
[1734345387663,1.04733518,3940.4,3938.3,0.39624907]
[1734345387664,3.34776,3939.1,3938.3,0.39624907]
[1734345388252,0.8091,3939.1,3938.3,0.39624907]
[1734345388609,0.8091,3939.1,3938.3,0.65015907]
[1734345388812,0.8091,3939.1,3938.4,2.17000045]
[1734345389657,2.53852,3939.3,3938.5,1.06991595]
[1734345389873,0.7932,3940.1,3939.2,2.17000045]
[1734345390033,0.7932,3940.1,3939.7,0.25382]
[1734345390364,0.7932,3940.1,3939.8,0.25381]
[1734345391350,0.7941,3940.6,3940.0,0.2538]
[1734345391512,0.7941,3940.6,3940.0,2.42380045]
[1734345392155,0.7941,3940.6,3940.0,2.4123805]
[1734345392362,0.7941,3940.6,3940.0,2.6661805]
[1734345392609,0.7941,3940.6,3940.0,2.4123805]
[1734345392889,0.7941,3940.6,3939.6,2.42383045]
[1734345393106,0.1126253,3940.7,3940.4,2.17000045]
[1734345393257,0.1126253,3940.7,3940.6,0.25376]
[1734345393459,0.1126253,3940.7,3940.6,0.89865933]
[1734345393882,5.3e-06,3940.7,3940.6,1.67985933]
[1734345394050,5.3e-06,3940.7,3940.6,2.03898911]
[1734345394262,5.3e-06,3940.7,3940.6,2.36484531]
[1734345396183,5.3e-06,3940.7,3940.6,1.58364531]
[1734345397206,5.3e-06,3940.7,3940.6,0.5796162]
[1734345397900,5.3e-06,3940.7,3940.6,0.89865933]
[1734345399864,5.3e-06,3940.7,3940.6,0.92403172]
[1734345400115,5.3e-06,3940.7,3940.6,0.89865933]
[1734345401410,5.3e-06,3940.7,3940.6,0.57280313]
[1734345401617,5.3e-06,3940.7,3940.6,1.14708349]
[1734345401770,5.3e-06,3940.7,3940.6,0.89332349]
[1734345401964,5.3e-06,3940.7,3940.4,2.17000045]
[1734345402506,5.3e-06,3940.7,3940.4,2.42378045]
[1734345403220,5.3e-06,3940.7,3940.4,2.17000045]
[1734345403523,5.3e-06,3940.7,3939.7,0.3258562]
[1734345403524,0.781,3940.6,3940.0,2.17000045]
[1734345404711,0.8151,3940.5,3939.6,2.17000045]
[1734345405442,2.53785,3940.4,3939.6,2.17000045]
[1734345405736,0.8151,3940.3,3939.6,2.17000045]
[1734345406441,0.8151,3940.3,3940.0,2.17000045]
[1734345407509,0.8151,3940.3,3939.6,2.17000045]
[1734345407712,2.53794,3940.2,3939.6,2.17000045]
[1734345407911,0.7927,3940.0,3939.2,2.17000045]
[1734345408096,0.02548157,3939.9,3939.2,2.17000045]
[1734345408296,0.7927,3939.8,3939.2,2.17000045]
[1734345408537,0.02548157,3939.7,3939.2,2.17000045]
[1734345409035,2.53793,3940.3,3939.2,2.17000045]
[1734345409235,0.253793,3940.2,3939.2,2.17000045]
[1734345409541,0.203793,3940.2,3939.2,2.17000045]
[1734345410036,2.53809,3940.0,3939.2,2.17000045]
[1734345410240,2.53791,3940.3,3939.2,2.17000045]
[1734345410398,2.53794,3940.2,3939.2,2.17000045]
[1734345410598,2.53802,3940.1,3939.2,2.17000045]
[1734345410794,2.791882,3940.0,3939.2,2.17000045]
[1734345411221,2.53822,3939.8,3939.2,2.17000045]
[1734345411545,2.791872,3940.0,3939.2,2.17000045]
[1734345412036,0.7927,3939.9,3939.2,2.17000045]
[1734345415175,3.33084,3939.9,3939.2,2.17000045]
[1734345415463,1.351,3939.8,3938.6,3.31904313]
[1734345415605,2.53873,3939.0,3938.4,2.17000045]
[1734345415809,2.53873,3939.0,3938.3,0.39624907]
[1734345416050,2.53873,3939.0,3938.3,0.68477834]
[1734345416547,0.801,3939.1,3938.3,0.68477834]
[1734345416746,0.801,3939.1,3938.4,2.17000045]
[1734345417908,2.53879,3938.9,3938.4,2.17000045]
[1734345419812,0.55,3939.0,3938.4,2.17000045]
[1734345420050,0.8323,3938.6,3938.3,0.39624907]
[1734345420261,2.53916,3938.3,3937.6,2.17000045]
[1734345420423,2.53916,3938.3,3937.7,0.39640303]
[1734345420955,0.8323,3938.6,3937.7,0.39640303]
[1734345421110,2.53923,3938.2,3937.7,0.39640303]
[1734345421317,0.8323,3938.6,3937.7,0.39640303]
[1734345421541,0.8323,3938.6,3937.8,0.25664035]
[1734345421747,0.8323,3938.6,3938.0,2.17000045]
[1734345424428,0.8323,3938.6,3937.8,1.68983968]
[1734345424429,0.833,3939.4,3938.5,0.7508]
[1734345424611,0.833,3939.4,3938.8,2.17000045]
[1734345424818,0.833,3939.4,3938.8,2.51937381]
[1734345426959,0.833,3939.4,3938.8,2.17000045]
[1734345428358,0.833,3939.4,3938.8,2.42388045]
[1734345428747,0.833,3939.4,3938.8,2.17000045]
[1734345429855,0.833,3939.4,3938.8,2.42388045]
[1734345430551,0.833,3939.4,3938.8,2.17000045]
[1734345432905,0.7724,3940.0,3939.4,0.25384]
[1734345433056,0.7724,3940.0,3939.3,0.25385]
[1734345433381,0.7724,3940.6,3939.6,2.17000045]
[1734345433682,2.53783,3940.4,3939.6,2.17000045]
[1734345433922,0.331023,3940.3,3939.6,2.17000045]
[1734345438656,2.53794,3940.2,3939.6,2.17000045]
[1734345438853,0.331023,3940.3,3938.9,1.45049933]
[1734345438854,2.53819,3939.9,3938.9,0.8056]
[1734345439098,2.53825,3939.8,3938.9,0.8056]
[1734345439286,0.55,3939.7,3938.9,0.8056]
[1734345439491,3.08807,3940.0,3938.9,1.40316005]
[1734345439686,0.55,3940.0,3938.9,1.40316005]
[1734345440073,0.55,3940.0,3939.1,0.25386]
[1734345440498,0.55,3940.0,3938.9,1.65703005]
[1734345440698,0.55,3940.0,3939.0,0.25386]
[1734345441056,0.55,3940.2,3939.3,0.25385]
[1734345441300,0.55,3940.3,3939.3,0.25385]
[1734345441773,0.55,3940.1,3939.1,2.42386045]
[1734345442100,2.53814,3939.9,3939.1,2.17000045]
[1734345442309,0.55,3940.0,3939.1,2.17000045]
[1734345442519,0.913801,3940.0,3939.1,2.48904358]
[1734345443512,0.913801,3940.0,3939.1,0.31904313]
[1734345443808,0.55,3939.6,3938.7,0.7584]
[1734345443970,0.55,3939.6,3938.3,2.48904358]
[1734345443971,0.55,3939.3,3938.4,0.7584]
[1734345444614,0.55,3939.5,3938.4,1.3381562]
[1734345444791,0.55,3939.5,3938.5,0.63661998]
[1734345444962,0.55,3939.6,3938.7,2.42388045]
[1734345445163,0.55,3939.6,3938.8,0.25388]
[1734345445392,2.53819,3939.9,3939.1,2.95530045]
[1734345445393,0.55,3939.8,3939.1,2.95530045]
[1734345446511,0.55,3939.7,3939.1,2.95530045]
[1734345446991,0.55,3939.9,3939.1,3.2762185]
[1734345447310,0.55,3939.9,3939.1,3.5300785]
[1734345447611,0.55,3939.9,3939.5,2.17000045]
[1734345447793,0.7839,3940.5,3939.5,2.42383045]
[1734345447997,0.7839,3940.5,3939.6,0.7517]
[1734345448364,2.53771,3940.6,3939.6,0.7517]
[1734345448948,0.8741953,3940.5,3939.6,0.7517]
[1734345449287,0.55,3940.3,3939.6,0.7517]
[1734345452517,0.55,3940.6,3939.6,0.7517]
[1734345452672,3.78366322,3940.6,3939.6,0.7517]
[1734345452876,0.55,3940.4,3939.6,0.7517]
[1734345453076,0.55,3940.4,3939.7,0.25382]
[1734345453275,0.55,3940.6,3939.7,0.57137204]
[1734345453473,0.55,3940.4,3939.7,0.57137204]
[1734345453723,0.55,3940.6,3939.9,2.17000045]
[1734345454028,1.04734048,3940.7,3940.0,0.8204]
[1734345454029,5.3e-06,3940.7,3940.0,0.8204]
[1734345454168,5.3e-06,3940.7,3940.0,1.0742]
[1734345454374,5.3e-06,3940.7,3940.0,1.20916087]
[1734345455577,5.3e-06,3940.7,3940.5,2.17000045]
[1734345456334,5.3e-06,3940.7,3940.6,0.8033]
[1734345457524,5.3e-06,3940.7,3940.6,1.05706]
[1734345457876,5.3e-06,3940.7,3940.6,0.8033]
[1734345458320,5.3e-06,3940.7,3940.6,1.15791236]
[1734345458922,5.3e-06,3940.7,3940.2,0.8064]
[1734345459817,5.3e-06,3940.7,3939.8,0.797]
[1734345460429,5.3e-06,3940.7,3939.8,0.82238018]
[1734345460634,5.3e-06,3940.7,3939.8,0.797]
[1734345460991,0.5500053,3940.7,3939.8,0.797]
[1734345461442,0.5500053,3940.7,3939.9,0.35383725]
[1734345462132,5.3e-06,3940.7,3940.1,2.42379045]
[1734345463508,5.3e-06,3940.7,3940.1,2.17000045]
[1734345464438,5.3e-06,3940.7,3940.6,0.7704]